Cogmind - Beta 16 @@@ ROGUE MODE // 2025.10.23 @ 20:55:59 Player: Countzero Result: Destroyed by Y-45 Defender with Beam Rifle Performance ------------- Evolutions (1) 500 Regions Visited (2) 400 Robots Destroyed (27) 135 Value Destroyed (827) 827 Prototype IDs (1) 20 Alien Tech Used (0) 0 Bonus (0) 0 TOTAL SCORE: 1882 Bonus ------- None Cogmind --------- Core Integrity 0/400 Matter 285/300 Energy 100/100 System Corruption 5% Temperature Cool (9) Movement Core (1350) Ox26 Location -9/Materials Parts ------- > --- POWER (1) -------- (None) > --- PROPULSION (2) --- (None) > --- UTILITY (3) ------ Huge Storage Unit > --- WEAPON (3) ------- (None) > --- INVENTORY (25) --- Heavy Ion Engine Medium Matter Pod (100) Visual Processing Unit Signal Interpreter Terrain Scanner Peak State ------------ > --- POWER ------------ Heavy Ion Engine > --- PROPULSION ------- Light Treads Light Treads > --- UTILITY ---------- Huge Storage Unit High-capacity Battery Core Shielding > --- WEAPON ----------- Heavy EM Pulse Gun Medium Laser Light Assault Rifle > --- INVENTORY -------- Light Treads Light Treads Medium Matter Pod Visual Processing Unit Signal Interpreter Terrain Scanner Heavy EM Pulse Gun Datajack [Rating: 13] Favorites ----------- Power Light Ion Engine Engine Light Ion Engine Power Core Light Nuclear Core Propulsion Light Treads Treads Light Treads Utility High-capacity Battery Storage High-capacity Battery Protection Core Shielding Weapon Light Assault Rifle Energy Gun Medium Laser Ballistic Gun Light Assault Rifle Special Melee Weapon Datajack Build | -11 -10 -9 ------- Run | Yrd Mat Mat Slots Evolved 2 | . . 2 Power . | . . . Propulsion . | . . . Utility 1 | . . 1 Weapon 1 | . . 1 Parts Attached 22 | 6 9 7 Power 4 | 1 2 1 Engine 3 | 1 2 . Core 1 | . . 1 Reactor . | . . . Propulsion 6 | 2 2 2 Treads 6 | 2 2 2 Leg . | . . . Wheel . | . . . Hover . | . . . Flight . | . . . Utility 4 | 1 2 1 Device . | . . . Storage 3 | 1 2 . Processor . | . . . Hackware . | . . . Protection 1 | . . 1 Artifact . | . . . Weapon 8 | 2 3 3 Energy Gun 5 | 1 2 2 Energy Cannon . | . . . Ballistic Gun 2 | 1 1 . Ballistic Cannon . | . . . Launcher . | . . . Special Weapon . | . . . Impact Weapon . | . . . Slashing Weapon . | . . . Piercing Weapon . | . . . Special Melee Weapon 1 | . . 1 Unidentified Prototypes 1 | . 1 . Corrupted Parts 1 | . . 1 System Corruption 5 | . . 5 Parts Lost 18 | . 7 11 Power 3 | . 2 1 Propulsion 5 | . 2 3 Utility 2 | . . 2 Weapon 8 | . 3 5 Highest Loss Streak 7 | . 3 7 To Critical Strikes . | . . . Average Backups 7 | 2 7 6 Power . | . . . Propulsion . | . . 1 Utility 3 | . 3 4 Weapon 1 | 1 1 . Tool/Special . | . . . Unused Backups 4 | . . 4 Power . | . . . Propulsion . | . . . Utility 4 | . . 4 Weapon . | . . . Tool/Special . | . . . Average Slot Usage (%) 86 | . 86 86 Engine 13 | . 13 9 Treads 16 | . 15 19 Storage 26 | . 27 21 Protection 1 | . . 10 Energy Gun 14 | . 13 16 Ballistic Gun 12 | . 14 1 Peak Build Rating 13 | 6 10 13 Average Rating 7 | 4 6 10 On Entrance 5 | . 6 10 Avg Prop Armor Cover (%) . | . . . Naked Turns . | . . . Heaviest Build 99 | 10 95 99 Greatest Support 40 | 40 40 40 Greatest Overweight (x) 29 | 1 29 26 Average Overweight (x) 4 | . 4 2 Largest Inventory Capacity 25 | 8 25 25 Average Capacity 23 | 7 23 25 Most Carried 11 | 5 11 9 Average Carried 7 | 2 7 5 Final Capacity 25 | 8 25 25 Final Carried 10 | 2 10 5 Class Distribution -------------------- 97% | Mutant Dominant Class ---------------- Mutant | -10/Materials Mutant | -9/Materials Resources | -11 -10 -9 ----------- Run | Yrd Mat Mat Matter Collected 558 | 220 293 45 Remotely . | . . . Salvage Created 1046 | 68 556 422 Parts 51 | 2 33 16 Haulers Intercepted . | . . . Recyclers Shooed 1 | . 1 . Parts Field Recycled . | . . . Retrieved Matter . | . . . Parts Self-Destructed . | . . . Prevented . | . . . Parts Restored . | . . . Kills | -11 -10 -9 ------- Run | Yrd Mat Mat Combat Hostiles Destroyed 23 | . 14 9 Guns 22 | . 13 9 Classes Destroyed 5 | 1 4 . Worker 1 | . 1 . Recycler 1 | 1 . . Watcher 2 | . 2 . Swarmer 3 | . 3 . Grunt 20 | . 11 9 Best Kill Streak 5 | 1 2 5 Combat Bots Only 5 | . 2 5 Max Kills in Single Turn 2 | 1 2 1 Gunslinging 1 | . 1 . Exploded . | . . . Melee . | . . . Uniques/NPCs Destroyed . | . . . Combat | -11 -10 -9 -------- Run | Yrd Mat Mat Hostile Shots Fired 259 | . 145 114 Missed 66 | . 37 29 Hits 193 | . 108 85 Projectile 193 | . 108 85 Critical Strikes 2 | . . 2 Damage Taken 2366 | . 1250 1116 Core 595 | . 190 405 Absorbed by Shields . | . . . Redirected to Shielding 50 | . . 50 Core Remaining (%) 62 | 100 24 . Volleys Fired 118 | 5 81 32 Largest 2 | 2 2 2 Hottest 95 | 60 70 95 Shots Fired 213 | 10 155 48 Gun 213 | 10 155 48 Cannon . | . . . Launcher . | . . . Special . | . . . Kinetic 86 | 5 81 . Thermal 98 | 5 74 19 Explosive . | . . . Electromagnetic 29 | . . 29 Robot Hit Streak 9 | 4 9 8 Robot Miss Streak 4 | 2 4 3 Penetration Max . | . . . Secondary Targets 1 | . 1 . Max Gunslinging Chain 1 | . 1 . Shots Hit Robots 139 | 7 96 36 Core Hits 55 | 2 38 15 Critical Kills . | . . . Critical Parts Destroyed . | . . . Critical Strikes 8 | . 5 3 Burn 6 | . 5 1 Corrupt 2 | . . 2 Melee Attacks 3 | . . 3 Impact . | . . . Slashing . | . . . Piercing . | . . . Sneak Attacks . | . . . Combat Hostiles . | . . . Follow-up Attacks . | . . . Damage Inflicted 1574 | 66 1001 507 Guns 1545 | 66 1001 478 Cannons . | . . . Explosions 29 | . . 29 Melee . | . . . Ramming . | . . . Kinetic 478 | 30 448 . Thermal 793 | 36 553 204 Explosive . | . . . Electromagnetic 303 | . . 303 Impact . | . . . Slashing . | . . . Piercing . | . . . Highest Corruption 5 | . . 5 Average Corruption 5 | . . 5 Corruption Purged . | . . . Corruption Blocked . | . . . Effects 1 | . . 1 Matter Fused 1 | . . 1 Overload Shots . | . . . Overflow Damage . | . . . Projectiles . | . . . Explosions . | . . . Melee . | . . . Knockbacks . | . . . Impact . | . . . Kinetic . | . . . Secondary . | . . . Self-Inflicted Damage 17 | . . 17 Shots 1 | . . 1 Rammed . | . . . Targets Rammed . | . . . Kicked . | . . . Crushed . | . . . Highest Temperature 226 | 20 226 157 Average Temperature 64 | 13 72 49 Received Heat Transfer 1116 | . 570 546 Siege Activations . | . . . Martial Activations . | . . . Shielding Activations . | . . . Robots Disrupted 1 | . . 1 Combat Hostiles 1 | . . 1 Robots Corrupted . | . . . Combat Hostiles . | . . . Parts Fried 1 | . . 1 Impact Corruptions . | . . . Robots Melted 1 | . 1 . Combat Hostiles 1 | . 1 . Parts Melted 7 | . 4 3 Heat Transferred 2585 | 75 1868 642 Parts Sabotaged . | . . . Parts Stolen . | . . . Parts Stripped . | . . . Power Chain Reactions 1 | . . 1 Alert | -11 -10 -9 ------- Run | Yrd Mat Mat Maximum Alert Level . | . . . Low Security (%) 100 | 100 100 100 Level 1 . | . . . Level 2 . | . . . Level 3 . | . . . Level 4 . | . . . Level 5 . | . . . High Security . | . . . Max Security . | . . . Peak Influence 129 | 5 97 129 Initial 34 | . . 34 Average 22 | . 17 63 Influence Increases 684 | 5 420 259 Destroy 0b10 Robot/C 460 | . 280 180 Destroy 0b10 Robot/NC 20 | 5 15 . Destroy Leader 104 | . 74 30 Successful Hack 35 | . 35 . Destroy Structure 5 | . 1 4 Lose Combat Pursuer 60 | . 15 45 Influence Decreases 684 | 5 337 342 Entered New Map 49 | . . 49 Time Decay 496 | 5 289 202 Lost Part 139 | . 48 91 Squads Dispatched 4 | . 4 . Investigation 2 | . 2 . Extermination . | . . . Reinforcement 2 | . 2 . Assault . | . . . Garrison . | . . . Intercept . | . . . Searches Triggered . | . . . Construction Impeded . | . . . Haulers Reinforced . | . . . Active Scanning Responses . | . . . Cargo Convoy Interrupts . | . . . Stealth | -11 -10 -9 --------- Run | Yrd Mat Mat Distress Signals 2 | . 1 1 Communications Jammed . | . . . Distress Signals . | . . . Times Spotted 45 | . 27 18 Peak Tracking Total 5 | . 5 5 Tactical Retreats 3 | . 1 2 Traps | -11 -10 -9 ------- Run | Yrd Mat Mat Traps Triggered 1 | . 1 . Indirectly . | . . . Trap Hack Attempts . | . . . Triggered . | . . . Disarmed 6 | . 6 . Reprogrammed . | . . . Reused . | . . . Traps Extracted . | . . . Installed . | . . . Triggered . | . . . Machines | -11 -10 -9 ---------- Run | Yrd Mat Mat Machines Disabled . | . . . Max in Single Turn . | . . . Machines Repaired . | . . . Machines Dismantled . | . . . Machines Sabotaged . | . . . Overloaded Fab Kills . | . . . Hacking | -11 -10 -9 --------- Run | Yrd Mat Mat Machines Accessed 8 | . 8 . Terminals 6 | . 6 . Fabricators . | . . . Repair Stations 1 | . 1 . Recycling Units 1 | . 1 . Scanalyzers . | . . . Garrison Access . | . . . Total Hacks 34 | . 34 . Successful 24 | . 24 . Failed 10 | . 10 . Catastrophic 1 | . 1 . Database Lockouts . | . . . Manual . | . . . Terminals 29 | . 29 . Fabricators . | . . . Repair Stations 3 | . 3 . Recycling Units 2 | . 2 . Scanalyzers . | . . . Garrison Access . | . . . Terminal Hacks 21 | . 21 . Record 9 | . 9 . Robot Analysis 2 | . 2 . Emergency Access Points 2 | . 2 . Alert Level 2 | . 2 . Locate Traps 1 | . 1 . Disarm Traps 1 | . 1 . Dispatch Records 1 | . 1 . Transport Status 1 | . 1 . Hauler Manifests 1 | . 1 . Registered Components 1 | . 1 . Fabricator Hacks . | . . . Repair Station Hacks 1 | . 1 . Scan Component 1 | . 1 . Recycling Unit Hacks 2 | . 2 . Recycle Component 1 | . 1 . Report Inventory 1 | . 1 . Scanalyzer . | . . . Garrison Access Hacks . | . . . Unauthorized Hacks . | . . . Terminals . | . . . Fabricators . | . . . Repair Stations . | . . . Recycling Units . | . . . Scanalyzers . | . . . Garrison Access . | . . . Data Cores Recovered . | . . . Used . | . . . Hacking Detections 7 | . 7 . Full Trace Events 4 | . 4 . Feedback Events . | . . . Feedback Blocked . | . . . Robot Schematics Acquired . | . . . Robots Built . | . . . Authchips . | . . . Time . | . . . Total Robot Build Rating . | . . . Part Schematics Acquired . | . . . Parts Built . | . . . Authchips . | . . . Time . | . . . Total Part Build Rating . | . . . Part Studies Acquired . | . . . Parts Repaired . | . . . Time . | . . . Parts Recycled 1 | . 1 . Recycled Matter . | . . . Retrieved Matter . | . . . Retrieved Components . | . . . Parts Scanalyzed . | . . . Part Schematics Acquired . | . . . Parts Damaged . | . . . Bothacking | -11 -10 -9 ------------ Run | Yrd Mat Mat Used RIF Installer . | . . . Robots Hacked 1 | . . 1 Non-combat . | . . . Combat 1 | . . 1 Robot Hacks Applied 1 | . . 1 parse_system 1 | . . 1 Relay Couplers Released . | . . . Fabnet Peak Effective % . | . . . Robots Rewired . | . . . Allies Hacked . | . . . Hacks Repelled . | . . . Allies | -11 -10 -9 -------- Run | Yrd Mat Mat Total Allies . | . . . Largest Group . | . . . Highest-Rated Group . | . . . Highest-Rated Ally . | . . . Total Orders . | . . . Ally Attacks . | . . . Total Damage . | . . . Kills . | . . . Allies Corrupted . | . . . Allies Melted . | . . . Intel | -11 -10 -9 ------- Run | Yrd Mat Mat Active Infowar (turns) . | . . . Robot Analysis Total 2 | . 2 . Derelict Logs Recovered . | . . . Drone Launches . | . . . Drone Recoveries . | . . . Exploration | -11 -10 -9 ------------- Run | Yrd Mat Mat Turns Passed 4072 | 77 3501 494 Spaces Moved 906 | 43 750 113 Core 111 | 18 91 2 Treads 795 | 25 659 111 Legs . | . . . Wheels . | . . . Hover . | . . . Flight . | . . . Fastest Speed 50 | 50 160 320 Average Speed 408 | 119 434 349 Slowest Speed 1500 | 160 1500 1350 Overloaded Moves . | . . . Propulsion Burnouts . | . . . Robots Hopped . | . . . Potential Cave-ins . | . . . Cave-ins Triggered . | . . . Exploration Rate (%) 38 | 3 96 16 Regions Visited 2 Branch Regions . Pre-discovered Areas . | . . . Known Exits Taken . | . . . Unknown Exits Taken 2 | 1 1 . Scrap Searched . | . . . Spaces Dug . | . . . Terrain Destroyed 3 | . . 3 Melee . | . . . Projectile . | . . . AOE 3 | . . 3 Terrain Rammed . | . . . Walls Destroyed . | . . . Machines Disabled . | . . . Actions | -11 -10 -9 --------- Run | Yrd Mat Mat Total 1082 | 58 856 168 Wait 7 | . . 7 Move 904 | 42 749 113 Hop . | . . . Pick Up 25 | 5 17 3 Fast Attach 3 | 3 . . Attach 19 | 3 8 8 Detach . | . . . Swap 3 | . 1 2 Drop . | . . . Fire 118 | 5 81 32 Melee 3 | . . 3 Ram . | . . . Kick . | . . . Crush . | . . . Escape Stasis . | . . . Rewire . | . . . Trap . | . . . Miscellaneous . | . . . Route ------- -11/Scrapyard -10/Materials (discovered 6 exits: [*Mat x3] / [*Min x2] / [*Sub]) -9/Materials History --------- Turn | Location | Event 8 | -11/Scrapyard | Discovered new exit (range 15) 78 | -11/Scrapyard | Entered Materials 80 | -10/Materials | Discovered new exit (range 4) 205 | -10/Materials | Discovered new exit (range 15) 250 | -10/Materials | Discovered new exit (range 11) 316 | -10/Materials | Build established: Mutant 1140 | -10/Materials | Core integrity fell below 50% 1154 | -10/Materials | Lost 3 parts (1n2w) 2914 | -10/Materials | Discovered new exit (range 8) 3157 | -10/Materials | Discovered new exit (range 5) 3547 | -10/Materials | Discovered new exit (range 8) 3579 | -10/Materials | Entered another Materials area 3579 | -9/Materials | Evolved 2 slots: Utility x1, Weapon x1 4052 | -9/Materials | Core integrity fell below 50% 4067 | -9/Materials | Core integrity fell below 20% 4073 | -9/Materials | Destroyed by Y-45 Defender with Beam Rifle Last Messages --------------- 04016_ Acquired Core Shielding. 04018_ W-16 Scout sends out distress signal. 04021_ Lgt. Treads destroyed. 04021_ Acquired Lgt. Treads. 04034_ Jacked Y-45 Defender... >>parse_system Reading system data... 04036_ Jacked Y-45 Defender... 04036_ Command string: shutdown 04036_ No effect. 04037_ Jacked Y-45 Defender... 04037_ Command string: Trojan(reprogram) 04037_ No effect. 04038_ R-06 Scavenger collects Lgt. Treads. 04043_ Lgt. Nuclear Core destroyed. 04049_ Lgt. Treads destroyed. 04049_ Datajack destroyed. 04053_ Hcp. Battery destroyed. 04058_ System corrupted: Matter fused (-5). 04063_ Core Shielding destroyed. Map ----- +----------------------------------------------------+ | ????????????????????????????????????????? | | #????????????????????????????????????????? | | #????????????????????????????????????????? | | #????????????????????????????????????????? | | #????????????????????????????????????????? | | #????????????????????????????????????????? | | ?????????????????????????????????????????? | | ???????????????????????????????????????????? | | #????????????????????????????????????????????? | | #????????????????????????????????????????????? | | ###???????????????? ???????????????????????? | | #???????????????# ???????????????????????? | | #???????????????# ???????????????????????? | | =[=#???????????????# #??????????????????????? | | ###%##???????????????#k #??????????????????????? | | ####+######???????????# #??????????????????????? | | ## #???????????# #??????????????????????? | | ## #???????????# ^^#??????????????????????? | | ## #??????#????#^ #??????????????????????? | | ## #??????? ???# #??????????????????????? | | ## #??????? ??# #??????????????????????? | | ## #??????? ""?# #??????????????????????? | | ## #????????Y" # #??????????????????????? | | ## #?????????" # #??????????????????????? | | ## #?????????? + #??????????????????????? | | ###+######???????????# @#??????????????????????? | | % ############### g##?????????????????????? | | %%% %% g ##########????????????? | | % ############## Y #??????? | | ########????????????# T #??????? | | #######??????????????# #??????? | | #????????????????????# u ##### ## #??????? | | #????????????????????## ####????? #????###??????? | | ###########???????????# #????????? #?????????????? | | # #???????????# #??????????#?????????????? | | # #??????????? #????????????????????????? | | # #??????????? #????????????????????????? | | # #??????????? #????????????????????????? | | + #?????????? #????????????????????????? | | # #?????????? #????????????????????????? | | # #??????????? ?????????????????????????? | | # #??????????? ?????????????????????????? | | ###########??????????? ?????????????????????????? | | #????????????????????????????????????????????????? | | #????????????????????????????????????????????????? | | ?????????????????????????????????????????????????? | | ?????????????????????????????????????????????????? | | ?????????????????????????????????????????????????? | | ?????????????????????????????????????????????????? | | ?????????????????????????????????????????????????? | +----------------------------------------------------+ Best States ------------- Heat Dissipation 28 Energy Generation 14 Energy Capacity 530 Matter Stores 300 Matter Capacity 300 Sight Range 16 Terrain Scan Density 10 Core Shielding 20 Evasion (%) 50 Recoil Reduction 2 Item Schematics ----------------- None Robot Schematics ------------------ None Fabricated ------------ Nothing Repaired ---------- Nothing Studied --------- None Alien Tech Used ----------------- None Achievements -------------- It's Just You Shopping List Challenges ------------ None Game ------ Seed HeatActiveFlail Manual? 0 Play Time 00:27:04 Cumulative 3.0 hours Start 2025.10.23 @ 20:26:31 End 2025.10.23 @ 20:55:59 Sessions 1 Manual Loads 0 Difficulty Rogue Special Mode None Game No. 7 Rogue 7 Adventurer 0 Explorer 0 Win Type - Total 0 Types 0/0/0/0/0/0/0/0/0/0 Lore% 2 Gallery% 4 Achievement% 5 Wizard Run 0 Options --------- Layout 1 ASCII 0 Keyboard 0 Movement Mouse Keybinds 0 Fullscreen 1 Font 32/SmallcapsGlow Map View 77x35 Zoom Use 0% Tactical HUD 1 Map Filters NONE Filters NONE Steam 1 RUN: 8bca709e-c9b5-4482-bf9f-9b94380bf824